{"text_format":"3","workbook":"xlsx","n_sheets":1,"sheets":["Popis inventara"],"not_rendered":{"images":1,"defined_names":3},"read":"whole","date_system":"1900"}

{"sheet":"Popis inventara","index":0,"n_rows":28,"n_cols":13,"rows_kept":28}
[{"$nulls":12}," "]
[{"$nulls":10},"Želite li istaknuti stavke za ponovno naručivanje?","Da"]
[null,"Ponovna Narudžba","ID inventara","Naziv","Opis","Jedinična cijena","Količina na zalihama","Vrijednost zaliha","Razina ponovnog naručivanja","Vrijeme ponovnog naručivanja u danima","Količina za ponovno naručivanje","Je li povučeno iz prometa?"]
[null,{"$f":"IFERROR((Tablica_Popisa_Inventara[[#This Row],[Količina na zalihama]]<=Tablica_Popisa_Inventara[[#This Row],[Razina ponovnog naručivanja]])*(Tablica_Popisa_Inventara[[#This Row],[Je li povučeno iz prometa?]]=\"\")*IstaknutaVri,0)","v":1},"IN0001","Stavka 1","Opis 1",{"v":51,"d":"51.00 kn"},25,{"$f":"Tablica_Popisa_Inventara[[#This Row],[Jedinična cijena]]*Tablica_Popisa_Inventara[[#This Row],[Količina na zalihama]]","v":{"v":1275,"d":"1,275.00 kn"}},29,13,50]
[null,{"$f":"IFERROR((Tablica_Popisa_Inventara[[#This Row],[Količina na zalihama]]<=Tablica_Popisa_Inventara[[#This Row],[Razina ponovnog naručivanja]])*(Tablica_Popisa_Inventara[[#This Row],[Je li povučeno iz prometa?]]=\"\")*IstaknutaVri,0)","v":1},"IN0002","Stavka 2","Opis 2",{"v":93,"d":"93.00 kn"},132,{"$f":"Tablica_Popisa_Inventara[[#This Row],[Jedinična cijena]]*Tablica_Popisa_Inventara[[#This Row],[Količina na zalihama]]","v":{"v":12276,"d":"12,276.00 kn"}},231,4,50]
[null,{"$f":"IFERROR((Tablica_Popisa_Inventara[[#This Row],[Količina na zalihama]]<=Tablica_Popisa_Inventara[[#This Row],[Razina ponovnog naručivanja]])*(Tablica_Popisa_Inventara[[#This Row],[Je li povučeno iz prometa?]]=\"\")*IstaknutaVri,0)","v":0},"IN0003","Artikl 3","Opis 3",{"v":57,"d":"57.00 kn"},151,{"$f":"Tablica_Popisa_Inventara[[#This Row],[Jedinična cijena]]*Tablica_Popisa_Inventara[[#This Row],[Količina na zalihama]]","v":{"v":8607,"d":"8,607.00 kn"}},114,11,150]
[null,{"$f":"IFERROR((Tablica_Popisa_Inventara[[#This Row],[Količina na zalihama]]<=Tablica_Popisa_Inventara[[#This Row],[Razina ponovnog naručivanja]])*(Tablica_Popisa_Inventara[[#This Row],[Je li povučeno iz prometa?]]=\"\")*IstaknutaVri,0)","v":0},"IN0004","Artikl 4","Opis 4",{"v":19,"d":"19.00 kn"},186,{"$f":"Tablica_Popisa_Inventara[[#This Row],[Jedinična cijena]]*Tablica_Popisa_Inventara[[#This Row],[Količina na zalihama]]","v":{"v":3534,"d":"3,534.00 kn"}},158,6,50]
[null,{"$f":"IFERROR((Tablica_Popisa_Inventara[[#This Row],[Količina na zalihama]]<=Tablica_Popisa_Inventara[[#This Row],[Razina ponovnog naručivanja]])*(Tablica_Popisa_Inventara[[#This Row],[Je li povučeno iz prometa?]]=\"\")*IstaknutaVri,0)","v":0},"IN0005","Stavka 5","Opis 5",{"v":75,"d":"75.00 kn"},62,{"$f":"Tablica_Popisa_Inventara[[#This Row],[Jedinična cijena]]*Tablica_Popisa_Inventara[[#This Row],[Količina na zalihama]]","v":{"v":4650,"d":"4,650.00 kn"}},39,12,50]
[null,{"$f":"IFERROR((Tablica_Popisa_Inventara[[#This Row],[Količina na zalihama]]<=Tablica_Popisa_Inventara[[#This Row],[Razina ponovnog naručivanja]])*(Tablica_Popisa_Inventara[[#This Row],[Je li povučeno iz prometa?]]=\"\")*IstaknutaVri,0)","v":1},"IN0006","Stavka 6","Opis 6",{"v":11,"d":"11.00 kn"},5,{"$f":"Tablica_Popisa_Inventara[[#This Row],[Jedinična cijena]]*Tablica_Popisa_Inventara[[#This Row],[Količina na zalihama]]","v":{"v":55,"d":"55.00 kn"}},9,13,150]
[null,{"$f":"IFERROR((Tablica_Popisa_Inventara[[#This Row],[Količina na zalihama]]<=Tablica_Popisa_Inventara[[#This Row],[Razina ponovnog naručivanja]])*(Tablica_Popisa_Inventara[[#This Row],[Je li povučeno iz prometa?]]=\"\")*IstaknutaVri,0)","v":0},"IN0007","Stavka 7","Opis 7",{"v":56,"d":"56.00 kn"},58,{"$f":"Tablica_Popisa_Inventara[[#This Row],[Jedinična cijena]]*Tablica_Popisa_Inventara[[#This Row],[Količina na zalihama]]","v":{"v":3248,"d":"3,248.00 kn"}},109,7,100,"Da"]
[null,{"$f":"IFERROR((Tablica_Popisa_Inventara[[#This Row],[Količina na zalihama]]<=Tablica_Popisa_Inventara[[#This Row],[Razina ponovnog naručivanja]])*(Tablica_Popisa_Inventara[[#This Row],[Je li povučeno iz prometa?]]=\"\")*IstaknutaVri,0)","v":1},"IN0008","Stavka 8","Opis 8",{"v":38,"d":"38.00 kn"},101,{"$f":"Tablica_Popisa_Inventara[[#This Row],[Jedinična cijena]]*Tablica_Popisa_Inventara[[#This Row],[Količina na zalihama]]","v":{"v":3838,"d":"3,838.00 kn"}},162,3,100]
[null,{"$f":"IFERROR((Tablica_Popisa_Inventara[[#This Row],[Količina na zalihama]]<=Tablica_Popisa_Inventara[[#This Row],[Razina ponovnog naručivanja]])*(Tablica_Popisa_Inventara[[#This Row],[Je li povučeno iz prometa?]]=\"\")*IstaknutaVri,0)","v":0},"IN0009","Stavka 9","Opis 9",{"v":59,"d":"59.00 kn"},122,{"$f":"Tablica_Popisa_Inventara[[#This Row],[Jedinična cijena]]*Tablica_Popisa_Inventara[[#This Row],[Količina na zalihama]]","v":{"v":7198,"d":"7,198.00 kn"}},82,3,150]
[null,{"$f":"IFERROR((Tablica_Popisa_Inventara[[#This Row],[Količina na zalihama]]<=Tablica_Popisa_Inventara[[#This Row],[Razina ponovnog naručivanja]])*(Tablica_Popisa_Inventara[[#This Row],[Je li povučeno iz prometa?]]=\"\")*IstaknutaVri,0)","v":1},"IN0010","Stavka 10","Opis 10",{"v":50,"d":"50.00 kn"},175,{"$f":"Tablica_Popisa_Inventara[[#This Row],[Jedinična cijena]]*Tablica_Popisa_Inventara[[#This Row],[Količina na zalihama]]","v":{"v":8750,"d":"8,750.00 kn"}},283,8,150]
[null,{"$f":"IFERROR((Tablica_Popisa_Inventara[[#This Row],[Količina na zalihama]]<=Tablica_Popisa_Inventara[[#This Row],[Razina ponovnog naručivanja]])*(Tablica_Popisa_Inventara[[#This Row],[Je li povučeno iz prometa?]]=\"\")*IstaknutaVri,0)","v":1},"IN0011","Stavka 11","Opis 11",{"v":59,"d":"59.00 kn"},176,{"$f":"Tablica_Popisa_Inventara[[#This Row],[Jedinična cijena]]*Tablica_Popisa_Inventara[[#This Row],[Količina na zalihama]]","v":{"v":10384,"d":"10,384.00 kn"}},229,1,100]
[null,{"$f":"IFERROR((Tablica_Popisa_Inventara[[#This Row],[Količina na zalihama]]<=Tablica_Popisa_Inventara[[#This Row],[Razina ponovnog naručivanja]])*(Tablica_Popisa_Inventara[[#This Row],[Je li povučeno iz prometa?]]=\"\")*IstaknutaVri,0)","v":1},"IN0012","Stavka 12","Opis 12",{"v":18,"d":"18.00 kn"},22,{"$f":"Tablica_Popisa_Inventara[[#This Row],[Jedinična cijena]]*Tablica_Popisa_Inventara[[#This Row],[Količina na zalihama]]","v":{"v":396,"d":"396.00 kn"}},36,12,50]
[null,{"$f":"IFERROR((Tablica_Popisa_Inventara[[#This Row],[Količina na zalihama]]<=Tablica_Popisa_Inventara[[#This Row],[Razina ponovnog naručivanja]])*(Tablica_Popisa_Inventara[[#This Row],[Je li povučeno iz prometa?]]=\"\")*IstaknutaVri,0)","v":1},"IN0013","Stavka 13","Opis 13",{"v":26,"d":"26.00 kn"},72,{"$f":"Tablica_Popisa_Inventara[[#This Row],[Jedinična cijena]]*Tablica_Popisa_Inventara[[#This Row],[Količina na zalihama]]","v":{"v":1872,"d":"1,872.00 kn"}},102,9,100]
[null,{"$f":"IFERROR((Tablica_Popisa_Inventara[[#This Row],[Količina na zalihama]]<=Tablica_Popisa_Inventara[[#This Row],[Razina ponovnog naručivanja]])*(Tablica_Popisa_Inventara[[#This Row],[Je li povučeno iz prometa?]]=\"\")*IstaknutaVri,0)","v":1},"IN0014","Stavka 14","Opis 14",{"v":42,"d":"42.00 kn"},62,{"$f":"Tablica_Popisa_Inventara[[#This Row],[Jedinična cijena]]*Tablica_Popisa_Inventara[[#This Row],[Količina na zalihama]]","v":{"v":2604,"d":"2,604.00 kn"}},83,2,100]
[null,{"$f":"IFERROR((Tablica_Popisa_Inventara[[#This Row],[Količina na zalihama]]<=Tablica_Popisa_Inventara[[#This Row],[Razina ponovnog naručivanja]])*(Tablica_Popisa_Inventara[[#This Row],[Je li povučeno iz prometa?]]=\"\")*IstaknutaVri,0)","v":0},"IN0015","Stavka 15","Opis 15",{"v":32,"d":"32.00 kn"},46,{"$f":"Tablica_Popisa_Inventara[[#This Row],[Jedinična cijena]]*Tablica_Popisa_Inventara[[#This Row],[Količina na zalihama]]","v":{"v":1472,"d":"1,472.00 kn"}},23,15,50]
[null,{"$f":"IFERROR((Tablica_Popisa_Inventara[[#This Row],[Količina na zalihama]]<=Tablica_Popisa_Inventara[[#This Row],[Razina ponovnog naručivanja]])*(Tablica_Popisa_Inventara[[#This Row],[Je li povučeno iz prometa?]]=\"\")*IstaknutaVri,0)","v":1},"IN0016","Stavka 16","Opis 16",{"v":90,"d":"90.00 kn"},96,{"$f":"Tablica_Popisa_Inventara[[#This Row],[Jedinična cijena]]*Tablica_Popisa_Inventara[[#This Row],[Količina na zalihama]]","v":{"v":8640,"d":"8,640.00 kn"}},180,3,50]
[null,{"$f":"IFERROR((Tablica_Popisa_Inventara[[#This Row],[Količina na zalihama]]<=Tablica_Popisa_Inventara[[#This Row],[Razina ponovnog naručivanja]])*(Tablica_Popisa_Inventara[[#This Row],[Je li povučeno iz prometa?]]=\"\")*IstaknutaVri,0)","v":0},"IN0017","Stavka 17","Opis 17",{"v":97,"d":"97.00 kn"},57,{"$f":"Tablica_Popisa_Inventara[[#This Row],[Jedinična cijena]]*Tablica_Popisa_Inventara[[#This Row],[Količina na zalihama]]","v":{"v":5529,"d":"5,529.00 kn"}},98,12,50,"Da"]
[null,{"$f":"IFERROR((Tablica_Popisa_Inventara[[#This Row],[Količina na zalihama]]<=Tablica_Popisa_Inventara[[#This Row],[Razina ponovnog naručivanja]])*(Tablica_Popisa_Inventara[[#This Row],[Je li povučeno iz prometa?]]=\"\")*IstaknutaVri,0)","v":1},"IN0018","Stavka 18","Opis 18",{"v":12,"d":"12.00 kn"},6,{"$f":"Tablica_Popisa_Inventara[[#This Row],[Jedinična cijena]]*Tablica_Popisa_Inventara[[#This Row],[Količina na zalihama]]","v":{"v":72,"d":"72.00 kn"}},7,13,50]
[null,{"$f":"IFERROR((Tablica_Popisa_Inventara[[#This Row],[Količina na zalihama]]<=Tablica_Popisa_Inventara[[#This Row],[Razina ponovnog naručivanja]])*(Tablica_Popisa_Inventara[[#This Row],[Je li povučeno iz prometa?]]=\"\")*IstaknutaVri,0)","v":1},"IN0019","Stavka 19","Opis 19",{"v":82,"d":"82.00 kn"},143,{"$f":"Tablica_Popisa_Inventara[[#This Row],[Jedinična cijena]]*Tablica_Popisa_Inventara[[#This Row],[Količina na zalihama]]","v":{"v":11726,"d":"11,726.00 kn"}},164,12,150]
[null,{"$f":"IFERROR((Tablica_Popisa_Inventara[[#This Row],[Količina na zalihama]]<=Tablica_Popisa_Inventara[[#This Row],[Razina ponovnog naručivanja]])*(Tablica_Popisa_Inventara[[#This Row],[Je li povučeno iz prometa?]]=\"\")*IstaknutaVri,0)","v":0},"IN0020","Stavka 20","Opis 20",{"v":16,"d":"16.00 kn"},124,{"$f":"Tablica_Popisa_Inventara[[#This Row],[Jedinična cijena]]*Tablica_Popisa_Inventara[[#This Row],[Količina na zalihama]]","v":{"v":1984,"d":"1,984.00 kn"}},113,14,50]
[null,{"$f":"IFERROR((Tablica_Popisa_Inventara[[#This Row],[Količina na zalihama]]<=Tablica_Popisa_Inventara[[#This Row],[Razina ponovnog naručivanja]])*(Tablica_Popisa_Inventara[[#This Row],[Je li povučeno iz prometa?]]=\"\")*IstaknutaVri,0)","v":0},"IN0021","Stavka 21","Opis 21",{"v":19,"d":"19.00 kn"},112,{"$f":"Tablica_Popisa_Inventara[[#This Row],[Jedinična cijena]]*Tablica_Popisa_Inventara[[#This Row],[Količina na zalihama]]","v":{"v":2128,"d":"2,128.00 kn"}},75,11,50]
[null,{"$f":"IFERROR((Tablica_Popisa_Inventara[[#This Row],[Količina na zalihama]]<=Tablica_Popisa_Inventara[[#This Row],[Razina ponovnog naručivanja]])*(Tablica_Popisa_Inventara[[#This Row],[Je li povučeno iz prometa?]]=\"\")*IstaknutaVri,0)","v":0},"IN0022","Stavka 22","Opis 22",{"v":24,"d":"24.00 kn"},182,{"$f":"Tablica_Popisa_Inventara[[#This Row],[Jedinična cijena]]*Tablica_Popisa_Inventara[[#This Row],[Količina na zalihama]]","v":{"v":4368,"d":"4,368.00 kn"}},132,15,150]
[null,{"$f":"IFERROR((Tablica_Popisa_Inventara[[#This Row],[Količina na zalihama]]<=Tablica_Popisa_Inventara[[#This Row],[Razina ponovnog naručivanja]])*(Tablica_Popisa_Inventara[[#This Row],[Je li povučeno iz prometa?]]=\"\")*IstaknutaVri,0)","v":0},"IN0023","Stavka 23","Opis 23",{"v":29,"d":"29.00 kn"},106,{"$f":"Tablica_Popisa_Inventara[[#This Row],[Jedinična cijena]]*Tablica_Popisa_Inventara[[#This Row],[Količina na zalihama]]","v":{"v":3074,"d":"3,074.00 kn"}},142,1,150,"Da"]
[null,{"$f":"IFERROR((Tablica_Popisa_Inventara[[#This Row],[Količina na zalihama]]<=Tablica_Popisa_Inventara[[#This Row],[Razina ponovnog naručivanja]])*(Tablica_Popisa_Inventara[[#This Row],[Je li povučeno iz prometa?]]=\"\")*IstaknutaVri,0)","v":0},"IN0024","Stavka 24","Opis 24",{"v":75,"d":"75.00 kn"},173,{"$f":"Tablica_Popisa_Inventara[[#This Row],[Jedinična cijena]]*Tablica_Popisa_Inventara[[#This Row],[Količina na zalihama]]","v":{"v":12975,"d":"12,975.00 kn"}},127,9,100]
[null,{"$f":"IFERROR((Tablica_Popisa_Inventara[[#This Row],[Količina na zalihama]]<=Tablica_Popisa_Inventara[[#This Row],[Razina ponovnog naručivanja]])*(Tablica_Popisa_Inventara[[#This Row],[Je li povučeno iz prometa?]]=\"\")*IstaknutaVri,0)","v":0},"IN0025","Stavka 25","Opis 25",{"v":14,"d":"14.00 kn"},28,{"$f":"Tablica_Popisa_Inventara[[#This Row],[Jedinična cijena]]*Tablica_Popisa_Inventara[[#This Row],[Količina na zalihama]]","v":{"v":392,"d":"392.00 kn"}},21,8,50]